Cogmind - Beta 16 @@@ ROGUE MODE // 2026.01.03 @ 23:36:11 Player: LYMPH NODE JONES Result: Destroyed by G-34 Mercenary with Small Laser Performance ------------- Evolutions (0) 0 Regions Visited (1) 200 Robots Destroyed (1) 5 Value Destroyed (6) 6 Prototype IDs (0) 0 Alien Tech Used (0) 0 Bonus (0) 0 TOTAL SCORE: 211 Bonus ------- None Cogmind --------- Core Integrity 0/250 Matter 300/300 Energy 100/100 System Corruption 1% Temperature Cool (6) Movement Hovering (80) Location -10/Materials Parts ------- > --- POWER (1) -------- (None) > --- PROPULSION (2) --- Combat Airjet > --- UTILITY (2) ------ Small Storage Unit > --- WEAPON (2) ------- (None) > --- INVENTORY (8) ---- Ion Engine Wheel Wheel EM Pulse Gun Mini Grenade Launcher Peak State ------------ > --- POWER ------------ Light Ion Engine > --- PROPULSION ------- Combat Airjet > --- UTILITY ---------- Small Storage Unit Improved Terrain Scanner > --- WEAPON ----------- Medium Laser Assault Rifle > --- INVENTORY -------- Ion Engine Wheel Wheel EM Pulse Gun Mini Grenade Launcher [Rating: 12] Favorites ----------- Power Light Ion Engine Engine Light Ion Engine Propulsion Combat Airjet Leg Aluminum Leg Hover Unit Combat Airjet Utility Small Storage Unit Device Improved Terrain Scanner Storage Small Storage Unit Weapon Assault Rifle Energy Gun Medium Laser Ballistic Gun Assault Rifle Build | -11 -10 ------- Run | Yrd Mat Slots Evolved . | . . Power . | . . Propulsion . | . . Utility . | . . Weapon . | . . Parts Attached 10 | 10 . Power 3 | 3 . Engine 3 | 3 . Core . | . . Reactor . | . . Propulsion 3 | 3 . Treads . | . . Leg 2 | 2 . Wheel . | . . Hover 1 | 1 . Flight . | . . Utility 2 | 2 . Device 1 | 1 . Storage 1 | 1 . Processor . | . . Hackware . | . . Protection . | . . Artifact . | . . Weapon 2 | 2 . Energy Gun 1 | 1 . Energy Cannon . | . . Ballistic Gun 1 | 1 . Ballistic Cannon . | . . Launcher . | . . Special Weapon . | . . Impact Weapon . | . . Slashing Weapon . | . . Piercing Weapon . | . . Special Melee Weapon . | . . Unidentified Prototypes . | . . Parts Lost 4 | . 4 Power 1 | . 1 Propulsion . | . . Utility 1 | . 1 Weapon 2 | . 2 Highest Loss Streak 4 | . 4 To Critical Strikes . | . . Average Backups 4 | 4 5 Power . | . 1 Propulsion 1 | 1 2 Utility . | . . Weapon 1 | 1 2 Tool/Special . | . . Unused Backups 5 | . 5 Power 1 | . 1 Propulsion 2 | . 2 Utility . | . . Weapon 2 | . 2 Tool/Special . | . . Average Slot Usage (%) 60 | . 60 Engine 7 | . 7 Hover 14 | . 14 Device 8 | . 8 Storage 14 | . 14 Energy Gun 7 | . 7 Ballistic Gun 8 | . 8 Peak Build Rating 12 | 12 12 Average Rating 9 | 9 9 On Entrance 6 | . 12 Avg Prop Armor Cover (%) . | . . Naked Turns . | . . Heaviest Build 13 | 13 13 Greatest Support 20 | 20 12 Greatest Overweight (x) 3 | 3 1 Average Overweight (x) . | . . Largest Inventory Capacity 8 | 8 8 Average Capacity 7 | 7 8 Most Carried 5 | 5 5 Average Carried 4 | 4 5 Final Capacity 8 | 8 8 Final Carried 5 | 5 5 Class Distribution -------------------- 100% | Mutant Dominant Class ---------------- Mutant | -10/Materials Resources | -11 -10 ----------- Run | Yrd Mat Matter Collected 421 | 421 . Remotely . | . . Salvage Created 124 | 124 . Parts 1 | 1 . Haulers Intercepted . | . . Recyclers Shooed . | . . Parts Field Recycled . | . . Retrieved Matter . | . . Parts Self-Destructed . | . . Prevented . | . . Parts Restored . | . . Kills | -11 -10 ------- Run | Yrd Mat Combat Hostiles Destroyed 7 | 7 . Guns 7 | 7 . Classes Destroyed 2 | 2 . Recycler 1 | 1 . Assembled 7 | 7 . Best Kill Streak 3 | 3 . Combat Bots Only 3 | 3 . Max Kills in Single Turn 1 | 1 . Gunslinging . | . . Exploded . | . . Melee . | . . Uniques/NPCs Destroyed . | . . Combat | -11 -10 -------- Run | Yrd Mat Hostile Shots Fired 102 | 23 79 Missed 29 | 7 22 Hits 73 | 16 57 Melee 7 | 7 . Projectile 66 | 9 57 Critical Strikes 1 | . 1 Damage Taken 810 | 303 507 Core 255 | 67 188 Absorbed by Shields . | . . Core Remaining (%) 73 | 73 . Volleys Fired 28 | 27 1 Largest 2 | 2 1 Hottest 70 | 70 20 Shots Fired 47 | 46 1 Gun 47 | 46 1 Cannon . | . . Launcher . | . . Special . | . . Kinetic 28 | 27 1 Thermal 19 | 19 . Explosive . | . . Electromagnetic . | . . Robot Hit Streak 5 | 5 . Robot Miss Streak 3 | 3 1 Penetration Max . | . . Secondary Targets 1 | 1 . Max Gunslinging Chain 1 | 1 . Shots Hit Robots 24 | 24 . Core Hits 14 | 14 . Critical Kills . | . . Critical Parts Destroyed . | . . Critical Strikes 1 | 1 . Burn 1 | 1 . Melee Attacks . | . . Impact . | . . Slashing . | . . Piercing . | . . Sneak Attacks . | . . Combat Hostiles . | . . Follow-up Attacks . | . . Damage Inflicted 319 | 303 16 Guns 303 | 303 . Cannons . | . . Explosions . | . . Melee . | . . Ramming 16 | . 16 Kinetic 191 | 191 . Thermal 112 | 112 . Explosive . | . . Electromagnetic . | . . Impact . | . . Slashing . | . . Piercing . | . . Highest Corruption 1 | . 1 Average Corruption 1 | . 1 Corruption Purged . | . . Corruption Blocked . | . . Overload Shots . | . . Overflow Damage . | . . Projectiles . | . . Explosions . | . . Melee . | . . Knockbacks . | . . Impact . | . . Kinetic . | . . Secondary . | . . Self-Inflicted Damage 7 | . 7 Shots . | . . Rammed 3 | . 3 Targets Rammed 3 | . 3 Kicked . | . . Crushed . | . . Highest Temperature 60 | 60 . Average Temperature 24 | 24 . Received Heat Transfer 142 | 40 102 Siege Activations . | . . Martial Activations . | . . Shielding Activations . | . . Robots Disrupted . | . . Combat Hostiles . | . . Robots Corrupted . | . . Combat Hostiles . | . . Parts Fried . | . . Impact Corruptions . | . . Robots Melted . | . . Combat Hostiles . | . . Parts Melted . | . . Heat Transferred 407 | 407 . Parts Sabotaged . | . . Parts Stolen . | . . Parts Stripped . | . . Power Chain Reactions . | . . Alert | -11 -10 ------- Run | Yrd Mat Maximum Alert Level . | . . Low Security (%) 100 | 100 100 Level 1 . | . . Level 2 . | . . Level 3 . | . . Level 4 . | . . Level 5 . | . . High Security . | . . Max Security . | . . Peak Influence 5 | 5 . Initial . | . . Average . | . . Influence Increases 5 | 5 . Destroy 0b10 Robot/NC 5 | 5 . Influence Decreases 5 | 5 . Time Decay 5 | 5 . Squads Dispatched 1 | . 1 Investigation . | . . Extermination . | . . Reinforcement 1 | . 1 Assault . | . . Garrison . | . . Intercept . | . . Searches Triggered . | . . Construction Impeded . | . . Haulers Reinforced . | . . Active Scanning Responses . | . . Cargo Convoy Interrupts . | . . Stealth | -11 -10 --------- Run | Yrd Mat Distress Signals 1 | . 1 Communications Jammed . | . . Distress Signals . | . . Times Spotted 23 | 14 9 Peak Tracking Total 7 | 5 7 Tactical Retreats 2 | 2 . Traps | -11 -10 ------- Run | Yrd Mat Traps Triggered . | . . Indirectly . | . . Trap Hack Attempts . | . . Triggered . | . . Disarmed . | . . Reprogrammed . | . . Reused . | . . Traps Extracted . | . . Installed . | . . Triggered . | . . Machines | -11 -10 ---------- Run | Yrd Mat Machines Disabled . | . . Max in Single Turn . | . . Machines Repaired . | . . Machines Dismantled . | . . Machines Sabotaged . | . . Overloaded Fab Kills . | . . Hacking | -11 -10 --------- Run | Yrd Mat Machines Accessed . | . . Terminals . | . . Fabricators . | . . Repair Stations . | . . Recycling Units . | . . Scanalyzers . | . . Garrison Access . | . . Total Hacks . | . . Successful . | . . Failed . | . . Catastrophic . | . . Database Lockouts . | . . Manual . | . . Terminals . | . . Fabricators . | . . Repair Stations . | . . Recycling Units . | . . Scanalyzers . | . . Garrison Access . | . . Terminal Hacks . | . . Fabricator Hacks . | . . Repair Station Hacks . | . . Recycling Unit Hacks . | . . Scanalyzer . | . . Garrison Access Hacks . | . . Unauthorized Hacks . | . . Terminals . | . . Fabricators . | . . Repair Stations . | . . Recycling Units . | . . Scanalyzers . | . . Garrison Access . | . . Data Cores Recovered . | . . Used . | . . Hacking Detections . | . . Full Trace Events . | . . Feedback Events . | . . Feedback Blocked . | . . Robot Schematics Acquired . | . . Robots Built . | . . Authchips . | . . Time . | . . Total Robot Build Rating . | . . Part Schematics Acquired . | . . Parts Built . | . . Authchips . | . . Time . | . . Total Part Build Rating . | . . Part Studies Acquired . | . . Parts Repaired . | . . Time . | . . Parts Recycled . | . . Recycled Matter . | . . Retrieved Matter . | . . Retrieved Components . | . . Parts Scanalyzed . | . . Part Schematics Acquired . | . . Parts Damaged . | . . Bothacking | -11 -10 ------------ Run | Yrd Mat Used RIF Installer . | . . Robots Hacked . | . . Non-combat . | . . Combat . | . . Robot Hacks Applied . | . . Relay Couplers Released . | . . Fabnet Peak Effective % . | . . Robots Rewired . | . . Allies Hacked . | . . Hacks Repelled . | . . Allies | -11 -10 -------- Run | Yrd Mat Total Allies . | . . Largest Group . | . . Highest-Rated Group . | . . Highest-Rated Ally . | . . Total Orders . | . . Ally Attacks . | . . Total Damage . | . . Kills . | . . Allies Corrupted . | . . Allies Melted . | . . Intel | -11 -10 ------- Run | Yrd Mat Active Infowar (turns) 4342 | 4293 49 Terrain 4342 | 4293 49 Robot Analysis Total . | . . Derelict Logs Recovered . | . . Drone Launches . | . . Drone Recoveries . | . . Exploration | -11 -10 ------------- Run | Yrd Mat Turns Passed 6539 | 6469 70 Spaces Moved 1025 | 988 37 Core 12 | 12 . Treads . | . . Legs 199 | 199 . Wheels . | . . Hover 814 | 777 37 Flight . | . . Fastest Speed 50 | 50 80 Average Speed 135 | 135 121 Slowest Speed 200 | 200 150 Overloaded Moves . | . . Propulsion Burnouts . | . . Robots Hopped . | . . Potential Cave-ins . | . . Cave-ins Triggered . | . . Exploration Rate (%) 44 | 74 14 Regions Visited 1 Branch Regions . Pre-discovered Areas . | . . Known Exits Taken . | . . Unknown Exits Taken 1 | 1 . Scrap Searched . | . . Spaces Dug . | . . Terrain Destroyed . | . . Melee . | . . Projectile . | . . AOE . | . . Terrain Rammed . | . . Walls Destroyed . | . . Machines Disabled . | . . Actions | -11 -10 --------- Run | Yrd Mat Total 6131 | 6070 61 Wait 5047 | 5027 20 Move 1024 | 987 37 Hop . | . . Pick Up 6 | 6 . Fast Attach 14 | 14 . Attach . | . . Detach . | . . Swap . | . . Drop 9 | 9 . Fire 28 | 27 1 Melee . | . . Ram 3 | . 3 Kick . | . . Crush . | . . Escape Stasis . | . . Rewire . | . . Trap . | . . Miscellaneous . | . . Route ------- -11/Scrapyard -10/Materials History --------- Turn | Location | Event 25 | -11/Scrapyard | Discovered new exit (range 16) 1477 | -11/Scrapyard | Assembled infested the area 6470 | -11/Scrapyard | Entered Materials 6471 | -10/Materials | Build established: Mutant 6522 | -10/Materials | Core integrity fell below 50% 6529 | -10/Materials | Core integrity fell below 20% 6540 | -10/Materials | Destroyed by G-34 Mercenary with Small Laser Last Messages --------------- scrapyard. Terminate on contact. 06477_ K-01 Serf collects debris. 06493_ O-16 Technician uses terminal to summon reinforcements. 06493_ ALERT: Hostiles spotted, dispatching reinforcements to Terminal M001. 06493_ O-16 Technician locks terminal. 06498_ K-01 Serf collects debris. 06505_ Med. Laser destroyed. 06506_ Slammed into S-10 Pest. 06506_ S-10 Pest destroyed. 06507_ Lgt. Ion Engine destroyed. 06510_ Slammed into O-16 Technician. 06510_ Destabilizing: System corrupted (+1). 06510_ Assault Rifle destroyed. 06510_ K-01 Serf cleans the Terminal. 06511_ Slammed into M-13 Machinist. 06513_ K-01 Serf cleans the Terminal. 06519_ Imp. Terrain Scanner destroyed. 06521_ K-01 Serf collects debris. Map ----- +----------------------------------------------------+ | ?????????????????????????????????????????????????? | | ?????????????????????????????????????????????????? | | ?????????????????????????????????????????????????? | | ?????????????????????????????????????????????????? | | ?????????????????????????????????????????????????? | | ?????????????????????????????????????????????????? | | ?????????????????????????????????????????????????? | | ?????????????????????????????????????????????????? | | ????????????????????? ???????????????????????????? | | ?????????????????????????????????????????????????? | | ?????????????????????????????????????????????????? | | ?????????????????????????????????????????????????? | | ?????????????????????????????????????????????????? | | ?????????????????????????????????????????????????? | | ??????????????????###########????????????????????? | | ??????????????????# #????????????????????? | | ??????????????????+ #????????????????????? | | ??????????????????# #???#????????????????? | | ??????????????????# """ """ #????????????????????? | | ??????????????????# """ """ #????????????????????? | | ??????????????????# """ """ #????????????????????? | | ??????????????????# #?#??????????????????? | | ??????????????# ??# #??#?????????????????? | | ??????????????# ?#######+###? ?????????????????? | | ??????????????# ####### ###? ?????"????????????? | | ???????????#### a @ # ??????????????????? | | ?????????? ^ gs # ???? ??????????????? | | ?????????? k + ???????????????????? | | ?????????? """ gw # ""?????????????????? | | ???????????#### """ % # """ ???????????????? | | ?????????????## """ "T" s##?"""? ??????????????? | | ??????????????# """[ #???##????????????????? | | ?????????????## *%=#?????????????????????? | | ??????????????# k% #?????????????????????? | | ??????????????##+####### #????? ???????????????? | | ??????????????? ???????# #?????????????????????? | | ?????????????? ????????# k#?????????????????????? | | ?????????????????????? # #?????????????"???????? | | ???????????????????????# #?????"???????????????? | | ???????????????????? ?# #?????????????????????? | | ?????????????####+###### #########+######??????? | | ?????????? #??????? | | ?????????? #??????? | | ?????????? #??????? | | ???????????################################??????? | | ?????????????????????????????????????#???????????? | | ???????????#????#????????????????????????????????? | | ?????????????????????????????????????????????????? | | | | | +----------------------------------------------------+ Best States ------------- Heat Dissipation 25 Energy Generation 10 Energy Capacity 125 Matter Stores 300 Matter Capacity 300 Sight Range 16 Terrain Scan Range 16 Terrain Scan Density 10 Evasion (%) 55 Item Schematics ----------------- None Robot Schematics ------------------ None Fabricated ------------ Nothing Repaired ---------- Nothing Studied --------- None Alien Tech Used ----------------- None Achievements -------------- None Challenges ------------ None Game ------ Seed HypertargetingSixSuit Manual? 0 Play Time 00:11:58 Cumulative 11.1 hours Start 2026.01.03 @ 22:32:18 End 2026.01.03 @ 23:36:11 Sessions 1 Manual Loads 0 Difficulty Rogue Special Mode None Game No. 27 Rogue 27 Adventurer 0 Explorer 0 Win Type - Total 0 Types 0/0/0/0/0/0/0/0/0/0 Lore% 9 Gallery% 11 Achievement% 13 Wizard Run 0 Options --------- Layout 1 ASCII 0 Keyboard 0 Movement Arrows Keybinds 0 Fullscreen 1 Font 16/SmallcapsGlow Map View 50x40 Zoom Use 0% Tactical HUD 1 Map Filters NONE Filters NONE Steam SD RUN: 3e4f4bd5-a074-44c5-aadb-aee460110cb7